[Event "34th MPL National U12 Chess-ch 2022"]
[Site "Mysore"]
[Date "2022.04.10"]
[Round "4.2"]
[White "Vaz, Ethan"]
[Black "Adharsh K"]
[Result "1-0"]
[ECO "B07"]
[WhiteElo "1384"]
[BlackElo "1444"]
[Annotator "NA RC"]
[PlyCount "95"]
[EventDate "2022.04.09"]
[EventCountry "IND"]
[SourceTitle "playchess.com"]
[Source "ChessBase"]
[SourceQuality "1"]
[TimeControl "5400+30"]

1. e4 {[%emt 0:00:04]} c5 {[%emt 0:00:06]} 2. c3 {[%emt 0:00:20]} g6 {[%emt 0:00:06]} 3. d4 {[%emt 0:00:27]} cxd4 {[%emt 0:00:08]} 4. cxd4 {[%emt 0:00:10]} Bg7 {[%emt 0:00:06]} 5. Nc3 {[%emt 0:00:43]} d6 {[%emt 0:00:10]} 6. h3 {[%emt 0:01:28]} Nf6 {[%emt 1:32:54]} 7. Nf3 {[%emt 0:00:53]} O-O {[%emt 0:00:00]} 8. Bd3 {[%emt 0:00:54]} Nc6 {[%emt 0:00:00]} 9. O-O {[%emt 0:01:00]} b6 {[%emt 0:00:00]} 10. a3 {[%emt 0:01:54]} Bb7 {[%emt 0:00:00]} 11. Be3 {[%emt 0:03:02]} e6 {[%emt 0:00:00]} 12. Rc1 {[%emt 0:01:26]} Rc8 {[%emt 0:00:00]} 13. b4 {[%emt 0:11:11]} h6 {[%emt 0:00:00]} 14. Qa4 {[%emt 0:09:39]} a6 {[%emt 0:00:00]} 15. Rfd1 {[%emt 0:04:19]} b5 {[%emt 0:00:00]} 16. Qb3 {[%emt 0:00:45]} Ne7 {[%emt 0:00:00]} 17. a4 {[%emt 0:07:30]} bxa4 {[%emt 0:00:00]} 18. Qxa4 {[%emt 0:00:11]} Qd7 {[%emt 0:00:00]} 19. Qa3 {[%emt 0:11:01]} Rc6 {[%emt 0:00:00]} 20. Nd2 {[%emt 0:08:46]} Rfc8 {[%emt 0:00:00]} 21. Qb2 {[%emt 0:02:55]} Qc7 {[%emt 0:00:00]} 22. Ndb1 {[%emt 0:04:18]} Qd7 {[%emt 0:00:00]} 23. b5 {[%emt 0:01:50]} R6c7 {[%emt 0:00:00]} 24. bxa6 {[%emt 0:01:12]} Bc6 {[%emt 0:00:00]} 25. Na3 {[%emt 0:02:56]} d5 {[%emt 0:00:00]} 26. e5 {[%emt 0:01:15]} Ne4 {[%emt 0:00:00]} 27. Ncb5 {[%emt 0:04:56]} Bxb5 {[%emt 0:00:00]} 28. Nxb5 {[%emt 0:01:02]} Rc6 {[%emt 0:00:00]} 29. a7 {[%emt 0:02:10]} Rxc1 {[%emt 0:00:00]} 30. Rxc1 {[%emt 0:00:26]} Nc6 {[%emt 0:00:00]} 31. Qa1 {[%emt 0:03:38]} Ra8 {[%emt 0:00:00]} 32. Bxe4 {[%emt 0:00:52]} dxe4 {[%emt 0:00:00]} 33. Qa6 {[%emt 0:00:50]} Nb4 {[%emt 0:00:00]} 34. Qb6 {[%emt 0:00:36]} Nd5 {[%emt 0:00:00]} 35. Qb8+ {[%emt 0:00:46]} Qd8 {[%emt 0:00:00]} 36. Qb7 {[%emt 0:00:56]} Bf8 {[%emt 0:00:00]} 37. Nc7 {[%emt 0:00:59]} Nxc7 {[%emt 0:00:00]} 38. Rxc7 {[%emt 0:00:06]} Qe8 {[%emt 0:00:00]} 39. Rxf7 {[%emt 0:00:41]} Rc8 {[%emt 0:00:00]} 40. Rc7 {[%emt 0:00:46]} Ra8 {[%emt 0:00:00]} 41. d5 {[%emt 0:01:11]} exd5 {[%emt 0:00:00]} 42. Qxd5+ {[%emt 0:00:07]} Kh8 {[%emt 0:00:00]} 43. Qf7 {[%emt 0:01:04]} Qxf7 {[%emt 0:00:00]} 44. Rxf7 {[%emt 0:00:04]} Bg7 {[%emt 0:00:00]} 45. e6 {[%emt 0:00:17]} Kg8 {[%emt 0:00:00]} 46. Rd7 {[%emt 0:00:29]} Kf8 {[%emt 0:00:00]} 47. e7+ {[%emt 0:00:08]} Ke8 {[%emt 0:00:00]} 48. Rd8+ {[%emt 0:00:04]} 1-0

[Event "34th MPL National U12 Chess-ch 2022"]
[Site "Mysore"]
[Date "2022.04.10"]
[Round "4.3"]
[White "Jain, Kushagra"]
[Black "Ayushman Mohanty"]
[Result "1-0"]
[ECO "C95"]
[WhiteElo "1452"]
[BlackElo "1480"]
[Annotator "NA RC"]
[PlyCount "145"]
[EventDate "2022.04.09"]
[EventCountry "IND"]
[SourceTitle "playchess.com"]
[Source "ChessBase"]
[SourceQuality "1"]
[TimeControl "5400+30"]

1. e4 {[%emt 0:00:06]} e5 {[%emt 0:00:21]} 2. Nf3 {[%emt 0:00:08]} Nc6 {[%emt 0:00:11]} 3. Bb5 {[%emt 0:00:04]} a6 {[%emt 0:00:13]} 4. Ba4 {[%emt 0:00:04]} Nf6 {[%emt 0:00:15]} 5. O-O {[%emt 0:00:07]} Be7 {[%emt 0:00:17]} 6. Re1 {[%emt 0:00:10]} b5 {[%emt 0:00:15]} 7. Bb3 {[%emt 0:00:08]} d6 {[%emt 0:00:07]} 8. c3 {[%emt 0:00:05]} O-O {[%emt 0:00:58]} 9. h3 {[%emt 0:00:03]} Nb8 {[%emt 0:00:10]} 10. d4 {[%emt 0:00:24]} Nbd7 {[%emt 0:00:10]} 11. Nbd2 {[%emt 0:00:33]} Bb7 {[%emt 0:00:08]} 12. Bc2 {[%emt 0:00:04]} Re8 {[%emt 0:00:10]} 13. Nf1 {[%emt 0:00:05]} Bf8 {[%emt 0:00:17]} 14. Ng3 {[%emt 0:00:05]} g6 {[%emt 0:00:22]} 15. b3 {[%emt 0:02:13]} Bg7 {[%emt 0:01:52]} 16. d5 {[%emt 1:34:11]} Rc8 {[%emt 0:00:56]} 17. Be3 {[%emt 0:00:00]} c6 {[%emt 0:00:27]} 18. c4 {[%emt 0:00:00]} Nb6 {[%emt 0:09:50]} 19. Rb1 {[%emt 0:00:00]} cxd5 {[%emt 0:03:02]} 20. cxd5 {[%emt 0:00:00]} Nbxd5 {[%emt 0:01:23]} 21. exd5 {[%emt 0:00:00]} Nxd5 {[%emt 0:00:05]} 22. Bd2 {[%emt 0:00:00]} f5 {[%emt 0:09:26]} 23. Nxf5 {[%emt 0:00:00]} gxf5 {[%emt 0:00:25]} 24. Bxf5 {[%emt 0:00:00]} Nc3 {[%emt 0:10:32]} 25. Bxc3 {[%emt 0:00:00]} Rxc3 {[%emt 0:00:42]} 26. Qd2 {[%emt 0:00:00]} Rc7 {[%emt 0:08:24]} 27. Qe3 {[%emt 0:00:00]} Qf6 {[%emt 0:09:15]} 28. Qd3 {[%emt 0:00:00]} Bf8 {[%emt 0:10:14]} 29. Be4 {[%emt 0:00:00]} Kh8 {[%emt 0:03:32]} 30. Bxb7 {[%emt 0:00:00]} Rxb7 {[%emt 0:00:19]} 31. Rbc1 {[%emt 0:00:00]} Qg6 {[%emt 0:10:01]} 32. Qxg6 {[%emt 0:00:00]} hxg6 {[%emt 0:00:12]} 33. Rc6 {[%emt 0:00:00]} Ra7 {[%emt 0:04:00]} 34. Ng5 {[%emt 0:00:00]} Kg7 {[%emt 0:02:48]} 35. f4 {[%emt 0:00:00]} Kf6 {[%emt 0:05:33]} 36. Ne4+ {[%emt 0:00:00]} Ke6 {[%emt 0:01:26]} 37. Nxd6 {[%emt 0:00:00]} Bxd6 {[%emt 0:01:47]} 38. Rxe5+ {[%emt 0:00:00]} Kd7 {[%emt 0:00:16]} 39. Rxd6+ {[%emt 0:00:00]} Kxd6 {[%emt 0:00:08]} 40. Rxe8 {[%emt 0:00:00]} Kc5 {[%emt 0:01:10]} 41. f5 {[%emt 0:00:00]} Rg7 {[%emt 0:03:00]} 42. fxg6 {[%emt 0:00:00]} Rxg6 {[%emt 0:00:10]} 43. g4 {[%emt 0:00:00]} Kb4 {[%emt 0:00:33]} 44. Kg2 {[%emt 0:00:00]} Ka3 {[%emt 0:00:41]} 45. Re2 {[%emt 0:00:00]} Rg5 {[%emt 0:00:06]} 46. Kg3 {[%emt 0:00:00]} Rd5 {[%emt 0:00:16]} 47. h4 {[%emt 0:00:00]} Rd3+ {[%emt 0:00:12]} 48. Kf4 {[%emt 0:00:00]} b4 {[%emt 0:00:37]} 49. h5 {[%emt 0:00:00]} Rd4+ {[%emt 0:00:09]} 50. Kf5 {[%emt 0:00:00]} a5 {[%emt 0:00:27]} 51. g5 {[%emt 0:00:00]} Rd5+ {[%emt 0:00:20]} 52. Kf6 {[%emt 0:00:00]} Rd6+ {[%emt 0:00:08]} 53. Ke7 {[%emt 0:00:00]} Rd5 {[%emt 0:00:17]} 54. Rg2 {[%emt 0:00:00]} Re5+ {[%emt 0:00:08]} 55. Kf6 {[%emt 0:00:00]} Rc5 {[%emt 0:00:15]} 56. h6 {[%emt 0:00:00]} Rc6+ {[%emt 0:01:03]} 57. Ke5 {[%emt 0:00:00]} Rc5+ {[%emt 0:00:10]} 58. Kd6 {[%emt 0:00:00]} Rc8 {[%emt 0:00:09]} 59. h7 {[%emt 0:00:00]} Rd8+ {[%emt 0:00:15]} 60. Ke7 {[%emt 0:00:00]} Ra8 {[%emt 0:00:48]} 61. g6 {[%emt 0:00:00]} Rh8 {[%emt 0:00:32]} 62. Kf6 {[%emt 0:00:00]} a4 {[%emt 0:00:16]} 63. bxa4 {[%emt 0:00:00]} b3 {[%emt 0:00:17]} 64. axb3 {[%emt 0:00:00]} Rb8 {[%emt 0:00:16]} 65. g7 {[%emt 0:00:00]} Rb6+ {[%emt 0:00:08]} 66. Ke5 {[%emt 0:00:00]} Rc6 {[%emt 0:00:13]} 67. h8=Q {[%emt 0:00:00]} Rc5+ {[%emt 0:00:11]} 68. Kd4 {[%emt 0:00:00]} Rc4+ {[%emt 0:00:04]} 69. bxc4 {[%emt 0:00:00]} Kb3 {[%emt 0:00:08]} 70. Qb8+ {[%emt 0:00:00]} Ka3 {[%emt 0:00:04]} 71. Qb2+ {[%emt 0:00:00]} Kxa4 {[%emt 0:00:07]} 72. Qa2+ {[%emt 0:00:00]} Kb4 {[%emt 0:00:09]} 73. Rb2# {[%emt 0:00:00]} 1-0

[Event "34th MPL National U12 Chess-ch 2022"]
[Site "Mysore"]
[Date "2022.04.10"]
[Round "4.4"]
[White "Gandhi, Aakash"]
[Black "Darshan, V P S"]
[Result "1/2-1/2"]
[ECO "D35"]
[WhiteElo "1698"]
[BlackElo "1670"]
[Annotator "NA RC"]
[PlyCount "92"]
[EventDate "2022.04.09"]
[EventCountry "IND"]
[SourceTitle "playchess.com"]
[Source "ChessBase"]
[SourceQuality "1"]
[TimeControl "5400+30"]

1. d4 {[%emt 0:00:35]} Nf6 {[%emt 0:00:08]} 2. c4 {[%emt 0:00:16]} e6 {[%emt 0:00:06]} 3. Nc3 {[%emt 0:00:26]} d5 {[%emt 0:00:07]} 4. cxd5 {[%emt 0:00:26]} exd5 {[%emt 0:00:21]} 5. Bg5 {[%emt 0:00:20]} c6 {[%emt 0:00:36]} 6. e3 {[%emt 0:00:09]} Bf5 {[%emt 0:00:14]} 7. Bd3 {[%emt 0:00:58]} Bxd3 {[%emt 0:00:33]} 8. Qxd3 {[%emt 0:00:19]} Nbd7 {[%emt 0:00:21]} 9. Nge2 {[%emt 0:00:11]} Bd6 {[%emt 0:00:24]} 10. f3 {[%emt 0:01:32]} Qa5 {[%emt 0:04:41]} 11. O-O {[%emt 0:01:42]} O-O {[%emt 0:00:41]} 12. Bh4 {[%emt 0:07:06]} c5 {[%emt 0:09:10]} 13. Bf2 {[%emt 1:23:00]} Rfe8 {[%emt 0:07:48]} 14. Ng3 {[%emt 0:00:00]} cxd4 {[%emt 0:02:40]} 15. exd4 {[%emt 0:00:00]} Bxg3 {[%emt 0:01:24]} 16. Bxg3 {[%emt 0:00:00]} a6 {[%emt 0:03:05]} 17. a3 {[%emt 0:00:00]} b5 {[%emt 0:01:37]} 18. b4 {[%emt 0:00:00]} Qb6 {[%emt 0:00:27]} 19. Nd1 {[%emt 0:00:00]} Nh5 {[%emt 0:07:01]} 20. Ne3 {[%emt 0:00:00]} Nxg3 {[%emt 0:02:01]} 21. hxg3 {[%emt 0:00:00]} Qe6 {[%emt 0:00:46]} 22. Rae1 {[%emt 0:00:00]} g6 {[%emt 0:06:13]} 23. Ng4 {[%emt 0:00:00]} Qxe1 {[%emt 0:08:48]} 24. Rxe1 {[%emt 0:00:00]} Rxe1+ {[%emt 0:00:04]} 25. Kh2 {[%emt 0:00:00]} Rc8 {[%emt 0:02:48]} 26. Ne3 {[%emt 0:00:00]} Rcc1 {[%emt 0:00:35]} 27. g4 {[%emt 0:00:00]} Nb6 {[%emt 0:04:27]} 28. g5 {[%emt 0:00:00]} Kg7 {[%emt 0:03:54]} 29. Qd2 {[%emt 0:00:00]} Nc4 {[%emt 0:05:36]} 30. Nxc4 {[%emt 0:00:00]} bxc4 {[%emt 0:00:07]} 31. Qf4 {[%emt 0:00:00]} c3 {[%emt 0:01:14]} 32. Qf6+ {[%emt 0:00:00]} Kg8 {[%emt 0:00:10]} 33. Qd8+ {[%emt 0:00:00]} Kg7 {[%emt 0:00:20]} 34. Qxd5 {[%emt 0:00:00]} c2 {[%emt 0:00:23]} 35. Qc6 {[%emt 0:00:00]} Re3 {[%emt 0:02:56]} 36. Qf6+ {[%emt 0:00:00]} Kg8 {[%emt 0:00:23]} 37. Qd8+ {[%emt 0:00:00]} Kg7 {[%emt 0:00:05]} 38. Qf6+ {[%emt 0:00:00]} Kf8 {[%emt 0:01:21]} 39. Qh8+ {[%emt 0:00:00]} Ke7 {[%emt 0:00:36]} 40. Qf6+ {[%emt 0:00:00]} Kf8 {[%emt 0:00:22]} 41. Qh8+ {[%emt 0:00:00]} Ke7 {[%emt 0:00:05]} 42. Qf6+ {[%emt 0:00:00]} Kf8 {[%emt 0:00:04]} 43. Qh8+ {[%emt 0:00:00]} Ke7 {[%emt 0:00:04]} 44. Qf6+ {[%emt 0:00:00]} Kf8 {[%emt 0:00:06]} 45. Qh8+ {[%emt 0:00:00]} Ke7 {[%emt 0:00:06]} 46. Qf6+ {[%emt 0:00:00]} Kf8 {[%emt 0:00:09]} 1/2-1/2

[Event "34th MPL National U12 Chess-ch 2022"]
[Site "Mysore"]
[Date "2022.04.10"]
[Round "4.5"]
[White "Vignesh Kannan P"]
[Black "Aansh Nandan Nerurkar"]
[Result "0-1"]
[ECO "B76"]
[WhiteElo "1308"]
[BlackElo "1564"]
[Annotator "NA RC"]
[PlyCount "132"]
[EventDate "2022.04.09"]
[EventCountry "IND"]
[SourceTitle "playchess.com"]
[Source "ChessBase"]
[SourceQuality "1"]
[TimeControl "5400+30"]

1. e4 {[%emt 0:00:03]} c5 {[%emt 0:00:10]} 2. Nf3 {[%emt 0:00:07]} d6 {[%emt 0:00:07]} 3. d4 {[%emt 0:00:07]} cxd4 {[%emt 0:00:06]} 4. Nxd4 {[%emt 0:00:07]} Nf6 {[%emt 0:00:07]} 5. Nc3 {[%emt 0:00:06]} g6 {[%emt 0:00:12]} 6. Be3 {[%emt 0:00:19]} Bg7 {[%emt 0:00:07]} 7. f3 {[%emt 0:01:20]} O-O {[%emt 0:00:12]} 8. Qd2 {[%emt 0:00:04]} Nc6 {[%emt 0:00:09]} 9. O-O-O {[%emt 0:00:09]} Nxd4 {[%emt 0:00:19]} 10. Bxd4 {[%emt 0:00:09]} Be6 {[%emt 0:00:35]} 11. g4 {[%emt 0:00:26]} Qa5 {[%emt 0:00:26]} 12. Kb1 {[%emt 0:00:29]} Rfc8 {[%emt 0:00:22]} 13. a3 {[%emt 0:02:48]} Rab8 {[%emt 0:01:03]} 14. g5 {[%emt 0:05:41]} Nh5 {[%emt 0:00:43]} 15. Bxg7 {[%emt 0:00:57]} Nxg7 {[%emt 0:00:17]} 16. Nd5 {[%emt 0:01:21]} Qxd2 {[%emt 0:00:26]} 17. Rxd2 {[%emt 0:00:08]} Bxd5 {[%emt 0:00:15]} 18. Rxd5 {[%emt 0:00:11]} Nh5 {[%emt 0:03:10]} 19. Bh3 {[%emt 0:03:10]} Rc4 {[%emt 0:01:38]} 20. Bg4 {[%emt 1:22:48]} Nf4 {[%emt 0:02:52]} 21. Rd2 {[%emt 0:00:00]} Rc5 {[%emt 0:01:14]} 22. h4 {[%emt 0:00:00]} h6 {[%emt 0:00:48]} 23. gxh6 {[%emt 0:00:00]} Kh7 {[%emt 0:00:43]} 24. Bh3 {[%emt 0:00:00]} Kxh6 {[%emt 0:02:23]} 25. Bf1 {[%emt 0:00:00]} Kg7 {[%emt 0:00:59]} 26. Rg1 {[%emt 0:00:00]} Rh8 {[%emt 0:01:04]} 27. Rg4 {[%emt 0:00:00]} Nh5 {[%emt 0:01:03]} 28. Rh2 {[%emt 0:00:00]} Nf6 {[%emt 0:03:05]} 29. Rg1 {[%emt 0:00:00]} Rch5 {[%emt 0:00:52]} 30. Rgh1 {[%emt 0:00:00]} d5 {[%emt 0:01:04]} 31. exd5 {[%emt 0:00:00]} Nxd5 {[%emt 0:00:33]} 32. Bc4 {[%emt 0:00:00]} Nf4 {[%emt 0:02:17]} 33. Re1 {[%emt 0:00:00]} e6 {[%emt 0:00:44]} 34. Re4 {[%emt 0:00:00]} Rxh4 {[%emt 0:01:21]} 35. Rd2 {[%emt 0:00:00]} Rh1+ {[%emt 0:01:59]} 36. Ka2 {[%emt 0:00:00]} Nh5 {[%emt 0:00:21]} 37. Bb3 {[%emt 0:00:00]} Nf6 {[%emt 0:00:30]} 38. Rc4 {[%emt 0:00:00]} Nd5 {[%emt 0:01:16]} 39. Ra4 {[%emt 0:00:00]} a6 {[%emt 0:00:53]} 40. Bxd5 {[%emt 0:00:00]} Rd8 {[%emt 0:00:55]} 41. Rad4 {[%emt 0:00:00]} Rxd5 {[%emt 0:00:22]} 42. Rxd5 {[%emt 0:00:00]} exd5 {[%emt 0:00:05]} 43. Rxd5 {[%emt 0:00:00]} Rf1 {[%emt 0:00:14]} 44. Rd3 {[%emt 0:00:00]} Kf6 {[%emt 0:00:21]} 45. c4 {[%emt 0:00:00]} Ke5 {[%emt 0:00:25]} 46. c5 {[%emt 0:00:00]} g5 {[%emt 0:00:28]} 47. b4 {[%emt 0:00:00]} f5 {[%emt 0:01:31]} 48. a4 {[%emt 0:00:00]} g4 {[%emt 0:01:35]} 49. fxg4 {[%emt 0:00:00]} fxg4 {[%emt 0:00:07]} 50. Rd7 {[%emt 0:00:00]} g3 {[%emt 0:01:06]} 51. Rxb7 {[%emt 0:00:00]} g2 {[%emt 0:00:11]} 52. Rg7 {[%emt 0:00:00]} g1=Q {[%emt 0:00:20]} 53. Rxg1 {[%emt 0:00:00]} Rxg1 {[%emt 0:00:09]} 54. Kb3 {[%emt 0:00:00]} Kd5 {[%emt 0:01:14]} 55. a5 {[%emt 0:00:00]} Rg3+ {[%emt 0:00:13]} 56. Ka4 {[%emt 0:00:00]} Kc4 {[%emt 0:00:05]} 57. c6 {[%emt 0:00:00]} Rg6 {[%emt 0:00:07]} 58. c7 {[%emt 0:00:00]} Rc6 {[%emt 0:00:13]} 59. Ka3 {[%emt 0:00:00]} Rxc7 {[%emt 0:00:07]} 60. Ka4 {[%emt 0:00:00]} Rb7 {[%emt 0:00:48]} 61. Ka3 {[%emt 0:00:00]} Rxb4 {[%emt 0:01:54]} 62. Ka2 {[%emt 0:00:00]} Kc3 {[%emt 0:00:34]} 63. Ka3 {[%emt 0:00:00]} Rb5 {[%emt 0:00:06]} 64. Ka2 {[%emt 0:00:00]} Rxa5+ {[%emt 0:00:09]} 65. Kb1 {[%emt 0:00:00]} Ra3 {[%emt 0:00:05]} 66. Kc1 {[%emt 0:00:00]} Ra1# {[%emt 0:00:05]} 0-1

[Event "34th MPL National U12 Chess-ch 2022"]
[Site "Mysore"]
[Date "2022.04.10"]
[Round "4.6"]
[White "Sriram Adarsh Uppala"]
[Black "Sharnarthi Viresh"]
[Result "1/2-1/2"]
[ECO "D03"]
[WhiteElo "1345"]
[BlackElo "1549"]
[Annotator "NA RC"]
[PlyCount "159"]
[EventDate "2022.04.09"]
[EventCountry "IND"]
[SourceTitle "playchess.com"]
[Source "ChessBase"]
[SourceQuality "1"]
[TimeControl "5400+30"]

1. d4 {[%emt 0:00:03]} Nf6 {[%emt 0:00:06]} 2. Nf3 {[%emt 0:00:31]} d5 {[%emt 0:00:31]} 3. Bg5 {[%emt 0:00:41]} Ne4 {[%emt 0:01:04]} 4. Bf4 {[%emt 0:00:15]} c5 {[%emt 0:00:22]} 5. dxc5 {[%emt 0:01:06]} Nc6 {[%emt 0:01:10]} 6. e3 {[%emt 0:00:24]} Bg4 {[%emt 0:00:55]} 7. Be2 {[%emt 0:01:44]} e6 {[%emt 0:02:54]} 8. O-O {[%emt 0:00:25]} g5 {[%emt 0:01:56]} 9. Bg3 {[%emt 0:00:09]} h5 {[%emt 0:00:09]} 10. Nbd2 {[%emt 0:08:54]} h4 {[%emt 0:01:31]} 11. Bd6 {[%emt 0:01:01]} Nxd6 {[%emt 0:00:26]} 12. cxd6 {[%emt 0:00:05]} Bxd6 {[%emt 0:00:06]} 13. h3 {[%emt 0:00:16]} Bh5 {[%emt 0:01:09]} 14. Nd4 {[%emt 0:00:30]} Bxe2 {[%emt 0:01:46]} 15. Qxe2 {[%emt 0:00:03]} Nxd4 {[%emt 0:02:29]} 16. exd4 {[%emt 0:00:04]} Qb6 {[%emt 0:00:59]} 17. Nf3 {[%emt 0:02:03]} Bf4 {[%emt 0:01:06]} 18. c4 {[%emt 0:00:36]} O-O-O {[%emt 0:01:10]} 19. c5 {[%emt 0:00:29]} Qc7 {[%emt 0:00:58]} 20. b4 {[%emt 0:00:14]} Rdg8 {[%emt 0:01:12]} 21. Ne5 {[%emt 0:01:50]} Kb8 {[%emt 0:02:56]} 22. Rfe1 {[%emt 0:02:07]} f5 {[%emt 0:03:43]} 23. b5 {[%emt 0:02:57]} Bxe5 {[%emt 0:16:20]} 24. Qxe5 {[%emt 0:00:18]} Qxe5 {[%emt 0:00:03]} 25. Rxe5 {[%emt 0:00:11]} Rg6 {[%emt 0:00:07]} 26. Rae1 {[%emt 0:00:11]} Rhh6 {[%emt 0:00:20]} 27. b6 {[%emt 0:00:28]} axb6 {[%emt 0:01:56]} 28. cxb6 {[%emt 0:00:03]} Kc8 {[%emt 0:03:28]} 29. Rc1+ {[%emt 0:00:08]} Kb8 {[%emt 0:00:04]} 30. Rc7 {[%emt 0:00:09]} g4 {[%emt 0:01:09]} 31. Kf1 {[%emt 0:01:27]} f4 {[%emt 0:02:56]} 32. Rf7 {[%emt 0:00:47]} Kc8 {[%emt 0:01:01]} 33. Re1 {[%emt 0:01:30]} e5 {[%emt 0:05:30]} 34. Rxe5 {[%emt 0:00:46]} Kd8 {[%emt 0:00:08]} 35. Rxd5+ {[%emt 0:00:06]} Ke8 {[%emt 0:00:05]} 36. Rxb7 {[%emt 0:00:10]} Rxb6 {[%emt 0:00:05]} 37. Rxb6 {[%emt 0:00:14]} Rxb6 {[%emt 0:00:09]} 38. hxg4 {[%emt 0:00:09]} Rb1+ {[%emt 0:02:28]} 39. Ke2 {[%emt 0:00:07]} Rb2+ {[%emt 0:00:03]} 40. Kf3 {[%emt 0:00:07]} Rxa2 {[%emt 0:00:04]} 41. Re5+ {[%emt 0:00:05]} Kf7 {[%emt 0:01:32]} 42. Rh5 {[%emt 0:00:34]} Rd2 {[%emt 0:00:22]} 43. d5 {[%emt 0:00:31]} Kg6 {[%emt 0:00:36]} 44. d6 {[%emt 0:00:16]} Rxd6 {[%emt 0:00:45]} 45. Rxh4 {[%emt 0:00:13]} Rf6 {[%emt 0:02:05]} 46. Rh8 {[%emt 0:00:20]} Kg7 {[%emt 0:00:59]} 47. Ra8 {[%emt 0:00:10]} Kg6 {[%emt 0:00:09]} 48. Ra5 {[%emt 0:00:06]} Rf8 {[%emt 0:00:11]} 49. g3 {[%emt 0:00:15]} fxg3+ {[%emt 0:00:25]} 50. Kxg3 {[%emt 0:00:06]} Rb8 {[%emt 0:00:03]} 51. Ra6+ {[%emt 0:00:08]} Kg7 {[%emt 0:00:05]} 52. f4 {[%emt 0:00:07]} Rb4 {[%emt 0:00:36]} 53. g5 {[%emt 0:00:16]} Rc4 {[%emt 0:00:18]} 54. Kg4 {[%emt 0:00:38]} Rb4 {[%emt 0:00:07]} 55. Re6 {[%emt 0:00:51]} Kf7 {[%emt 0:00:27]} 56. Re5 {[%emt 0:00:54]} Kg6 {[%emt 0:00:15]} 57. Ra5 {[%emt 0:00:33]} Rc4 {[%emt 0:02:11]} 58. Ra6+ {[%emt 0:00:11]} Kg7 {[%emt 0:00:28]} 59. Kh5 {[%emt 0:00:17]} Rxf4 {[%emt 0:00:08]} 60. Ra7+ {[%emt 0:00:02]} Kg8 {[%emt 0:00:35]} 61. Kh6 {[%emt 0:00:55]} Rf8 {[%emt 0:00:09]} 62. Rg7+ {[%emt 0:01:07]} Kh8 {[%emt 0:00:10]} 63. Kg6 {[%emt 0:00:08]} Ra8 {[%emt 0:00:11]} 64. Rf7 {[%emt 0:01:21]} Kg8 {[%emt 0:00:08]} 65. Rb7 {[%emt 1:19:38]} Ra6+ {[%emt 0:00:07]} 66. Kh5 {[%emt 0:00:00]} Rc6 {[%emt 0:00:06]} 67. Ra7 {[%emt 0:00:00]} Rb6 {[%emt 0:00:20]} 68. Ra5 {[%emt 0:00:00]} Kg7 {[%emt 0:00:39]} 69. Rd5 {[%emt 0:00:00]} Ra6 {[%emt 0:00:20]} 70. Rd7+ {[%emt 0:00:00]} Kg8 {[%emt 0:00:06]} 71. g6 {[%emt 0:00:00]} Ra1 {[%emt 0:00:08]} 72. Rb7 {[%emt 0:00:00]} Rh1+ {[%emt 0:00:11]} 73. Kg5 {[%emt 0:00:00]} Rg1+ {[%emt 0:00:05]} 74. Kf5 {[%emt 0:00:00]} Rf1+ {[%emt 0:00:01]} 75. Kg5 {[%emt 0:00:00]} Rg1+ {[%emt 0:00:02]} 76. Kf6 {[%emt 0:00:00]} Rf1+ {[%emt 0:00:01]} 77. Ke5 {[%emt 0:00:00]} Re1+ {[%emt 0:00:11]} 78. Kf4 {[%emt 0:00:00]} Rf1+ {[%emt 0:00:05]} 79. Ke3 {[%emt 0:00:00]} Rg1 {[%emt 0:50:09]} 80. Ke4 {[%emt 0:00:00]} 1/2-1/2

[Event "34th MPL National U12 Chess-ch 2022"]
[Site "Mysore"]
[Date "2022.04.11"]
[Round "5.1"]
[White "Sadbhav Rautela"]
[Black "Vaz, Ethan"]
[Result "0-1"]
[ECO "B23"]
[WhiteElo "1552"]
[BlackElo "1384"]
[Annotator "NA RC"]
[PlyCount "86"]
[EventDate "2022.04.09"]
[EventCountry "IND"]
[SourceTitle "playchess.com"]
[Source "ChessBase"]
[SourceQuality "1"]
[TimeControl "5400+30"]

1. e4 {[%emt 0:00:03]} c5 {[%emt 0:00:10]} 2. Nc3 {[%emt 0:00:10]} Nc6 {[%emt 0:00:16]} 3. Bb5 {[%emt 0:00:30]} g6 {[%emt 0:01:37]} 4. Bxc6 {[%emt 0:01:00]} bxc6 {[%emt 0:01:37]} 5. d3 {[%emt 0:00:18]} Bg7 {[%emt 0:01:23]} 6. f4 {[%emt 0:00:40]} Nf6 {[%emt 0:11:19]} 7. Nf3 {[%emt 0:01:14]} O-O {[%emt 0:01:09]} 8. O-O {[%emt 0:00:30]} Rb8 {[%emt 0:01:18]} 9. Qe1 {[%emt 0:07:50]} Ba6 {[%emt 0:10:17]} 10. b3 {[%emt 0:11:18]} d6 {[%emt 0:09:55]} 11. Bd2 {[%emt 0:02:54]} Qd7 {[%emt 0:06:53]} 12. Kh1 {[%emt 0:06:58]} Rfd8 {[%emt 0:14:01]} 13. Rb1 {[%emt 0:15:50]} Ne8 {[%emt 0:08:16]} 14. Na4 {[%emt 0:13:39]} Nc7 {[%emt 0:07:12]} 15. c4 {[%emt 0:03:05]} Re8 {[%emt 0:04:26]} 16. Qh4 {[%emt 0:06:42]} Bc8 {[%emt 0:04:22]} 17. h3 {[%emt 0:06:31]} f5 {[%emt 0:02:54]} 18. Bc3 {[%emt 0:02:51]} Bb7 {[%emt 0:03:00]} 19. Ng5 {[%emt 0:02:51]} h6 {[%emt 0:01:09]} 20. Nf3 {[%emt 0:00:48]} Rf8 {[%emt 0:01:15]} 21. Qg3 {[%emt 0:04:06]} Bxc3 {[%emt 0:01:31]} 22. Nxc3 {[%emt 0:00:22]} Kh7 {[%emt 0:00:39]} 23. Rbe1 {[%emt 0:02:25]} e6 {[%emt 0:01:02]} 24. Re2 {[%emt 0:03:22]} Ne8 {[%emt 0:01:11]} 25. Na4 {[%emt 0:03:19]} Nf6 {[%emt 0:01:24]} 26. e5 {[%emt 0:00:53]} Nh5 {[%emt 0:00:09]} 27. Qh2 {[%emt 0:00:23]} Rbd8 {[%emt 0:00:43]} 28. exd6 {[%emt 0:01:02]} Qxd6 {[%emt 0:00:08]} 29. Ne5 {[%emt 0:00:05]} g5 {[%emt 0:02:11]} 30. fxg5 {[%emt 0:01:41]} hxg5 {[%emt 0:00:41]} 31. g3 {[%emt 0:01:22]} Kg7 {[%emt 0:01:25]} 32. Rfe1 {[%emt 0:00:55]} Bc8 {[%emt 0:01:06]} 33. Qf2 {[%emt 0:00:46]} f4 {[%emt 0:00:32]} 34. gxf4 {[%emt 0:00:13]} Nxf4 {[%emt 0:00:15]} 35. Qg3 {[%emt 0:00:35]} Rf5 {[%emt 0:00:34]} 36. Rf2 {[%emt 0:00:31]} Rxe5 {[%emt 0:00:20]} 37. Ref1 {[%emt 0:00:46]} Qxd3 {[%emt 0:01:02]} 38. Rf3 {[%emt 0:00:25]} Qg6 {[%emt 0:00:31]} 39. Rg1 {[%emt 0:00:35]} Rf5 {[%emt 0:00:32]} 40. Nxc5 {[%emt 0:00:22]} Rh8 {[%emt 0:00:32]} 41. Qg4 {[%emt 0:00:38]} e5 {[%emt 0:00:58]} 42. Ne4 {[%emt 0:00:27]} Nxh3 {[%emt 0:00:20]} 43. Rfg3 {[%emt 0:01:05]} Nxg1+ {[%emt 0:00:54]} 0-1